[Event "Late-Titled-Tuesday-Blitz-June-25-2024"]
[Site "Chess.com"]
[Date "2024.06.25"]
[Round "6"]
[White "albi1999"]
[Black "Viktoker"]
[Result "0-1"]
[WhiteElo "2631"]
[BlackElo "2505"]
[TimeControl "180+1"]
[EndTime "15:05:32 PDT"]
[Termination "Viktoker won by resignation"]

1. d4 {[%clk 0:02:42.1]} 1... f5 {[%clk 0:03:00.1]} 2. e4 {[%clk 0:02:39.8]}
2... fxe4 {[%clk 0:03:00.1]} 3. Nc3 {[%clk 0:02:40.7]} 3... Nf6 {[%clk
0:03:00.2]} 4. Bg5 {[%clk 0:02:27.1]} 4... g6 {[%clk 0:03:00.5]} 5. f3 {[%clk
0:02:16]} 5... d5 {[%clk 0:02:58.6]} 6. fxe4 {[%clk 0:02:14.6]} 6... Nxe4 {[%clk
0:02:36.7]} 7. Nxe4 {[%clk 0:02:14.3]} 7... dxe4 {[%clk 0:02:37.6]} 8. Bc4
{[%clk 0:02:12.1]} 8... Nc6 {[%clk 0:02:37.4]} 9. Ne2 {[%clk 0:02:08.5]} 9...
Na5 {[%clk 0:02:36.8]} 10. Bb3 {[%clk 0:01:59.4]} 10... Nxb3 {[%clk 0:02:35.8]}
11. axb3 {[%clk 0:02:00.3]} 11... Bg7 {[%clk 0:02:36]} 12. Qd2 {[%clk
0:01:59.6]} 12... Bg4 {[%clk 0:02:33.7]} 13. O-O {[%clk 0:01:53.5]} 13... Bxe2
{[%clk 0:02:32.6]} 14. Qxe2 {[%clk 0:01:54.4]} 14... Qxd4+ {[%clk 0:02:29.8]}
15. Kh1 {[%clk 0:01:54.6]} 15... c6 {[%clk 0:02:07.3]} 16. Ra4 {[%clk
0:01:44.7]} 16... Qd5 {[%clk 0:02:02.5]} 17. Bh4 {[%clk 0:01:39.2]} 17... Rf8
{[%clk 0:01:20.7]} 18. Rd1 {[%clk 0:01:34.1]} 18... Qf5 {[%clk 0:01:14.2]} 19.
Rxe4 {[%clk 0:01:29.6]} 19... e5 {[%clk 0:01:13.5]} 20. Re1 {[%clk 0:00:55.8]}
20... Rf7 {[%clk 0:01:05]} 21. Re3 {[%clk 0:00:32.8]} 21... Qh5 {[%clk
0:00:50.8]} 22. Qc4 {[%clk 0:00:27.5]} 22... Kf8 {[%clk 0:00:42.3]} 23. Bg3
{[%clk 0:00:20.1]} 23... Re8 {[%clk 0:00:33.3]} 24. h3 {[%clk 0:00:20]} 24...
Kg8 {[%clk 0:00:33]} 25. Rf1 {[%clk 0:00:18.7]} 25... Rf8 {[%clk 0:00:31.9]} 26.
Rxf7 {[%clk 0:00:17.2]} 26... Rxf7 {[%clk 0:00:31.8]} 27. Rf3 {[%clk 0:00:17.8]}
27... g5 {[%clk 0:00:27.5]} 28. Rf5 {[%clk 0:00:12.3]} 28... Qg6 {[%clk
0:00:24.4]} 29. Rxf7 {[%clk 0:00:08.6]} 29... Qxf7 {[%clk 0:00:25.3]} 30. Qc5
{[%clk 0:00:08.8]} 30... Qe8 {[%clk 0:00:18.2]} 31. Qxa7 {[%clk 0:00:07.3]}
31... e4 {[%clk 0:00:18.6]} 32. Qe3 {[%clk 0:00:08.1]} 32... h6 {[%clk
0:00:18.4]} 33. c3 {[%clk 0:00:07.6]} 33... Qe6 {[%clk 0:00:18.3]} 34. b4 {[%clk
0:00:07.5]} 34... Qf5 {[%clk 0:00:18.5]} 35. Kg1 {[%clk 0:00:07.5]} 35... Qd5
{[%clk 0:00:18.6]} 36. Bf2 {[%clk 0:00:06.9]} 36... Qd1+ {[%clk 0:00:16.7]} 37.
Kh2 {[%clk 0:00:06.5]} 37... Be5+ {[%clk 0:00:16.3]} 38. Bg3 {[%clk 0:00:06.4]}
38... Bxg3+ {[%clk 0:00:16.3]} 39. Kxg3 {[%clk 0:00:07.3]} 39... Qd5 {[%clk
0:00:15.7]} 40. Qd4 {[%clk 0:00:04.2]} 40... Kf7 {[%clk 0:00:13.2]} 41. Qxd5+
{[%clk 0:00:03.1]} 41... cxd5 {[%clk 0:00:14.1]} 42. Kf2 {[%clk 0:00:03.7]}
42... Ke6 {[%clk 0:00:13.9]} 43. Ke3 {[%clk 0:00:04.6]} 43... Ke5 {[%clk
0:00:14.1]} 44. g4 {[%clk 0:00:04.9]} 44... b5 {[%clk 0:00:10.6]} 45. b3 {[%clk
0:00:05]} 45... d4+ {[%clk 0:00:10.7]} 46. Kd2 {[%clk 0:00:02.8]} 46... dxc3+
{[%clk 0:00:10.4]} 47. Kxc3 {[%clk 0:00:03.7]} 47... Kf4 {[%clk 0:00:10.8]} 48.
Kd2 {[%clk 0:00:03.4]} 48... Kf3 {[%clk 0:00:11.2]} 0-1

[Event "Late-Titled-Tuesday-Blitz-June-25-2024"]
[Site "Chess.com"]
[Date "2024.06.25"]
[Round "6"]
[White "rdarruda"]
[Black "ACollins05"]
[Result "1-0"]
[WhiteElo "2556"]
[BlackElo "2411"]
[TimeControl "180+1"]
[EndTime "15:05:34 PDT"]
[Termination "rdarruda won on time"]

1. d4 {[%clk 0:02:55.5]} 1... b5 {[%clk 0:02:59.9]} 2. e4 {[%clk 0:02:54.7]}
2... a6 {[%clk 0:02:59.7]} 3. c4 {[%clk 0:02:53.7]} 3... Bb7 {[%clk 0:02:59.5]}
4. d5 {[%clk 0:02:52.3]} 4... bxc4 {[%clk 0:02:55.7]} 5. Bxc4 {[%clk 0:02:53.2]}
5... e6 {[%clk 0:02:53.7]} 6. Nf3 {[%clk 0:02:51.9]} 6... Nf6 {[%clk 0:02:53.6]}
7. Nc3 {[%clk 0:02:50.6]} 7... Bb4 {[%clk 0:02:53.1]} 8. O-O {[%clk 0:02:44.4]}
8... O-O {[%clk 0:02:48.7]} 9. Re1 {[%clk 0:02:31.6]} 9... Re8 {[%clk 0:02:41]}
10. Bg5 {[%clk 0:02:01.5]} 10... h6 {[%clk 0:02:31.4]} 11. Bh4 {[%clk
0:02:01.4]} 11... Be7 {[%clk 0:02:27.7]} 12. Bg3 {[%clk 0:01:35.2]} 12... Bb4
{[%clk 0:02:26.6]} 13. Qb3 {[%clk 0:01:30.4]} 13... Bxc3 {[%clk 0:02:24.2]} 14.
bxc3 {[%clk 0:01:30.2]} 14... Bc8 {[%clk 0:02:08.2]} 15. Rad1 {[%clk 0:01:22.3]}
15... exd5 {[%clk 0:02:07.7]} 16. exd5 {[%clk 0:01:22.3]} 16... Rxe1+ {[%clk
0:02:06.8]} 17. Rxe1 {[%clk 0:01:22.9]} 17... d6 {[%clk 0:02:07.3]} 18. Nd4
{[%clk 0:01:21.3]} 18... Bd7 {[%clk 0:02:01.1]} 19. Nc6 {[%clk 0:01:14.7]} 19...
Nxc6 {[%clk 0:01:56]} 20. dxc6 {[%clk 0:01:15.6]} 20... Bxc6 {[%clk 0:01:56.7]}
21. Bxf7+ {[%clk 0:01:15.1]} 21... Kh8 {[%clk 0:01:56.7]} 22. Bh4 {[%clk
0:01:15.7]} 22... Qf8 {[%clk 0:01:41]} 23. h3 {[%clk 0:01:10.7]} 23... Rb8
{[%clk 0:01:39.7]} 24. Qc4 {[%clk 0:00:56.7]} 24... Bb5 {[%clk 0:01:34.4]} 25.
Qe6 {[%clk 0:00:56.6]} 25... Ng8 {[%clk 0:00:57.6]} 26. Bg6 {[%clk 0:00:51.3]}
26... Nf6 {[%clk 0:00:43.1]} 27. Bxf6 {[%clk 0:00:49.7]} 27... Qxf6 {[%clk
0:00:44]} 28. Qxf6 {[%clk 0:00:49.7]} 28... gxf6 {[%clk 0:00:43.8]} 29. Re7
{[%clk 0:00:50.4]} 29... c5 {[%clk 0:00:37]} 30. Re6 {[%clk 0:00:40]} 30... Kg7
{[%clk 0:00:36]} 31. Be4 {[%clk 0:00:37.5]} 31... Bc4 {[%clk 0:00:35.7]} 32.
Rxd6 {[%clk 0:00:37.2]} 32... Rb2 {[%clk 0:00:23.3]} 33. a4 {[%clk 0:00:33.2]}
33... Ra2 {[%clk 0:00:17.4]} 34. Bc6 {[%clk 0:00:32.9]} 34... Bb3 {[%clk
0:00:14.7]} 35. Bd7 {[%clk 0:00:24.4]} 35... a5 {[%clk 0:00:10.8]} 36. Ra6
{[%clk 0:00:24.2]} 36... Bxa4 {[%clk 0:00:06.3]} 37. Rxa5 {[%clk 0:00:24.1]}
37... Bb3 {[%clk 0:00:06.9]} 38. Rxa2 {[%clk 0:00:20.1]} 38... Bxa2 {[%clk
0:00:07.8]} 39. f4 {[%clk 0:00:20.2]} 39... Kf7 {[%clk 0:00:07.5]} 40. Kf2
{[%clk 0:00:20.2]} 40... Ke7 {[%clk 0:00:08.1]} 41. Bf5 {[%clk 0:00:20.4]} 41...
Bd5 {[%clk 0:00:07.1]} 42. g4 {[%clk 0:00:18.9]} 42... Kf7 {[%clk 0:00:06.8]}
43. Kg3 {[%clk 0:00:19.1]} 43... Kg7 {[%clk 0:00:07]} 44. h4 {[%clk 0:00:20]}
44... Kf7 {[%clk 0:00:07]} 45. Kf2 {[%clk 0:00:20.6]} 45... Ke7 {[%clk
0:00:06.9]} 46. Ke3 {[%clk 0:00:21.5]} 46... Kd6 {[%clk 0:00:06.4]} 47. Kd2
{[%clk 0:00:22.1]} 47... Ke7 {[%clk 0:00:05.1]} 48. Kc2 {[%clk 0:00:22]} 48...
Kd6 {[%clk 0:00:03.9]} 49. Kb2 {[%clk 0:00:22.2]} 49... Bf7 {[%clk 0:00:04.4]}
50. Ka3 {[%clk 0:00:22.7]} 50... Be8 {[%clk 0:00:02.7]} 51. Kb3 {[%clk
0:00:22.9]} 51... Bf7+ {[%clk 0:00:02.2]} 52. Ka4 {[%clk 0:00:22.7]} 52... Be8+
{[%clk 0:00:01.3]} 53. Ka5 {[%clk 0:00:22.8]} 53... Kd5 {[%clk 0:00:01.7]} 54.
Bd3 {[%clk 0:00:21.4]} 54... Bd7 {[%clk 0:00:01.6]} 55. g5 {[%clk 0:00:21.6]}
1-0

[Event "Late-Titled-Tuesday-Blitz-June-25-2024"]
[Site "Chess.com"]
[Date "2024.06.25"]
[Round "6"]
[White "HeroWilczek"]
[Black "s-dshubin"]
[Result "0-1"]
[WhiteElo "2451"]
[BlackElo "2330"]
[TimeControl "180+1"]
[EndTime "15:05:35 PDT"]
[Termination "s-dshubin won by resignation"]

1. Nf3 {[%clk 0:03:00.9]} 1... d5 {[%clk 0:03:00.1]} 2. e3 {[%clk 0:02:57.9]}
2... Nf6 {[%clk 0:03:00.4]} 3. b3 {[%clk 0:02:57.5]} 3... e6 {[%clk 0:03:00.9]}
4. Bb2 {[%clk 0:02:57.9]} 4... Be7 {[%clk 0:03:01.6]} 5. Be2 {[%clk 0:02:56.6]}
5... O-O {[%clk 0:03:02.1]} 6. O-O {[%clk 0:02:57.2]} 6... b6 {[%clk 0:03:01.8]}
7. c4 {[%clk 0:02:57.6]} 7... Bb7 {[%clk 0:03:02]} 8. cxd5 {[%clk 0:02:55.4]}
8... exd5 {[%clk 0:03:01.4]} 9. Nc3 {[%clk 0:02:56]} 9... c5 {[%clk 0:03:00.1]}
10. d4 {[%clk 0:02:55.9]} 10... Nc6 {[%clk 0:02:57.7]} 11. Rc1 {[%clk
0:02:54.6]} 11... Ne4 {[%clk 0:02:53.3]} 12. dxc5 {[%clk 0:02:53.3]} 12... Nxc3
{[%clk 0:02:52.5]} 13. Bxc3 {[%clk 0:02:51.1]} 13... Bxc5 {[%clk 0:02:48.5]} 14.
Qd2 {[%clk 0:02:40.5]} 14... Qe7 {[%clk 0:02:44]} 15. Rfd1 {[%clk 0:02:38.9]}
15... Rfd8 {[%clk 0:02:44.3]} 16. h3 {[%clk 0:02:35.4]} 16... Ba3 {[%clk
0:02:40.8]} 17. Bb2 {[%clk 0:02:34.5]} 17... Bd6 {[%clk 0:02:39.5]} 18. Rxc6
{[%clk 0:02:03.3]} 18... Bxc6 {[%clk 0:02:37.4]} 19. Qc3 {[%clk 0:02:03.8]}
19... d4 {[%clk 0:02:30.2]} 20. Qxc6 {[%clk 0:02:01.5]} 20... dxe3 {[%clk
0:02:27.7]} 21. Qc3 {[%clk 0:01:52.4]} 21... exf2+ {[%clk 0:02:26.7]} 22. Kf1
{[%clk 0:01:45.3]} 22... f6 {[%clk 0:02:24.2]} 23. Nd4 {[%clk 0:01:37.7]} 23...
Rac8 {[%clk 0:02:17.5]} 24. Bc4+ {[%clk 0:01:33.3]} 24... Kh8 {[%clk 0:02:15.6]}
25. Nf5 {[%clk 0:01:33.2]} 25... Qc7 {[%clk 0:02:06]} 26. Nxd6 {[%clk
0:01:19.4]} 26... Rxd6 {[%clk 0:02:04.8]} 27. Rxd6 {[%clk 0:01:20]} 27... Qxd6
{[%clk 0:02:05.7]} 28. Qd4 {[%clk 0:01:20.5]} 28... Qh2 {[%clk 0:01:17.8]} 29.
Kxf2 {[%clk 0:01:17.3]} 29... Re8 {[%clk 0:01:12.5]} 30. Qxf6 {[%clk 0:00:58.9]}
30... Qc7 {[%clk 0:00:28.5]} 31. Qd4 {[%clk 0:00:47.2]} 31... Rf8+ {[%clk
0:00:24.7]} 32. Kg1 {[%clk 0:00:46.5]} 32... Qg3 {[%clk 0:00:25.1]} 33. Bf1
{[%clk 0:00:28.1]} 33... h6 {[%clk 0:00:18.7]} 34. a4 {[%clk 0:00:27.5]} 34...
h5 {[%clk 0:00:18.2]} 35. Bc4 {[%clk 0:00:20.7]} 35... h4 {[%clk 0:00:17.4]} 36.
Bc3 {[%clk 0:00:15.3]} 36... Kh7 {[%clk 0:00:15.2]} 37. Qd3+ {[%clk 0:00:13.7]}
37... Qxd3 {[%clk 0:00:12.2]} 38. Bxd3+ {[%clk 0:00:14.6]} 38... Kh6 {[%clk
0:00:12.7]} 39. Bd2+ {[%clk 0:00:14.3]} 39... g5 {[%clk 0:00:13.1]} 40. Be4
{[%clk 0:00:11.6]} 40... Rd8 {[%clk 0:00:12.4]} 41. Be3 {[%clk 0:00:09.9]} 41...
Re8 {[%clk 0:00:12.9]} 42. Bxb6 {[%clk 0:00:07.1]} 42... axb6 {[%clk 0:00:12.8]}
43. Bd5 {[%clk 0:00:07.1]} 43... Re3 {[%clk 0:00:13.1]} 44. Kf2 {[%clk
0:00:06.7]} 44... Rd3 {[%clk 0:00:12.2]} 45. Bc4 {[%clk 0:00:06.6]} 45... Rd2+
{[%clk 0:00:12.1]} 46. Kf3 {[%clk 0:00:07.1]} 46... Kg6 {[%clk 0:00:12]} 47. Bb5
{[%clk 0:00:04.4]} 47... Kf6 {[%clk 0:00:10.9]} 48. Bc4 {[%clk 0:00:04.8]} 48...
Ke5 {[%clk 0:00:10.8]} 49. b4 {[%clk 0:00:04.1]} 49... Rd4 {[%clk 0:00:10.9]}
0-1

[Event "Late-Titled-Tuesday-Blitz-June-25-2024"]
[Site "Chess.com"]
[Date "2024.06.25"]
[Round "6"]
[White "artin10862"]
[Black "GlavkonVVS"]
[Result "1-0"]
[WhiteElo "2902"]
[BlackElo "2645"]
[TimeControl "180+1"]
[EndTime "15:05:36 PDT"]
[Termination "artin10862 won by resignation"]

1. e4 {[%clk 0:03:00.9]} 1... Nf6 {[%clk 0:03:00]} 2. e5 {[%clk 0:02:59.8]} 2...
Nd5 {[%clk 0:03:00]} 3. d4 {[%clk 0:03:00.1]} 3... d6 {[%clk 0:03:00]} 4. c4
{[%clk 0:02:55.7]} 4... Nb6 {[%clk 0:03:00]} 5. exd6 {[%clk 0:02:55.4]} 5...
cxd6 {[%clk 0:03:00]} 6. Nf3 {[%clk 0:02:54.5]} 6... Bg4 {[%clk 0:02:59.3]} 7.
Be2 {[%clk 0:02:49.9]} 7... g6 {[%clk 0:02:58.3]} 8. h3 {[%clk 0:02:43.9]} 8...
Bxf3 {[%clk 0:02:58]} 9. Bxf3 {[%clk 0:02:44.1]} 9... Nc6 {[%clk 0:02:58.5]} 10.
Be2 {[%clk 0:02:02.4]} 10... Bg7 {[%clk 0:02:56.7]} 11. Be3 {[%clk 0:02:02.3]}
11... O-O {[%clk 0:02:55.6]} 12. Nc3 {[%clk 0:02:02.3]} 12... d5 {[%clk
0:02:55.3]} 13. c5 {[%clk 0:02:02.4]} 13... Nc8 {[%clk 0:02:54.3]} 14. f4 {[%clk
0:01:48.4]} 14... e6 {[%clk 0:02:49.3]} 15. O-O {[%clk 0:01:44]} 15... N8e7
{[%clk 0:02:48.9]} 16. g4 {[%clk 0:01:44]} 16... b6 {[%clk 0:02:47.2]} 17. Bf2
{[%clk 0:01:21.8]} 17... bxc5 {[%clk 0:02:44.9]} 18. dxc5 {[%clk 0:01:21.9]}
18... Rb8 {[%clk 0:02:44.1]} 19. Qd2 {[%clk 0:01:10.9]} 19... Qa5 {[%clk
0:02:27.3]} 20. Rab1 {[%clk 0:01:10.4]} 20... Rfd8 {[%clk 0:02:09.6]} 21. Bf3
{[%clk 0:00:57.4]} 21... Qc7 {[%clk 0:02:01.6]} 22. Ne2 {[%clk 0:00:48.8]} 22...
d4 {[%clk 0:01:58.5]} 23. b4 {[%clk 0:00:34.9]} 23... d3 {[%clk 0:01:57]} 24.
Ng3 {[%clk 0:00:34.7]} 24... Nd4 {[%clk 0:01:48.5]} 25. Bg2 {[%clk 0:00:34.5]}
25... Nc2 {[%clk 0:01:43.3]} 26. Rb3 {[%clk 0:00:30.6]} 26... Nd5 {[%clk
0:01:35.4]} 27. Bxd5 {[%clk 0:00:22.9]} 27... Rxd5 {[%clk 0:01:34.6]} 28. a3
{[%clk 0:00:23.2]} 28... a5 {[%clk 0:01:32.5]} 29. Rxd3 {[%clk 0:00:21.1]} 29...
Nxa3 {[%clk 0:01:26.4]} 30. Rxd5 {[%clk 0:00:20.4]} 30... exd5 {[%clk
0:01:26.6]} 31. bxa5 {[%clk 0:00:20.8]} 31... Nc4 {[%clk 0:01:22.9]} 32. Qxd5
{[%clk 0:00:20.8]} 32... Qxf4 {[%clk 0:01:19.5]} 33. Ne2 {[%clk 0:00:10.2]}
33... Qd2 {[%clk 0:01:00.3]} 34. Qxc4 {[%clk 0:00:10]} 34... Rb2 {[%clk
0:00:57.7]} 35. Re1 {[%clk 0:00:07.6]} 35... Qxa5 {[%clk 0:00:50.6]} 36. c6
{[%clk 0:00:07.9]} 36... Be5 {[%clk 0:00:49.3]} 37. Qe4 {[%clk 0:00:04.9]} 37...
Qc7 {[%clk 0:00:40.4]} 38. Kf1 {[%clk 0:00:05.1]} 38... Rb8 {[%clk 0:00:34.4]}
39. Rd1 {[%clk 0:00:05.2]} 39... Re8 {[%clk 0:00:32.5]} 40. Rd7 {[%clk
0:00:05.4]} 40... Qa5 {[%clk 0:00:26.3]} 41. Qd5 {[%clk 0:00:04.1]} 41... Qa1+
{[%clk 0:00:19.2]} 42. Kg2 {[%clk 0:00:04.3]} 42... Rf8 {[%clk 0:00:18.6]} 43.
c7 {[%clk 0:00:02.9]} 43... Qa4 {[%clk 0:00:12.2]} 44. Rxf7 {[%clk 0:00:02.8]}
44... Rxf7 {[%clk 0:00:10.6]} 45. c8=Q+ {[%clk 0:00:03.1]} 45... Kg7 {[%clk
0:00:08.9]} 46. Qxe5+ {[%clk 0:00:03.7]} 1-0

[Event "Late-Titled-Tuesday-Blitz-June-25-2024"]
[Site "Chess.com"]
[Date "2024.06.25"]
[Round "6"]
[White "Gangster-accountant01"]
[Black "Rodalquilar"]
[Result "0-1"]
[WhiteElo "2579"]
[BlackElo "2836"]
[TimeControl "180+1"]
[EndTime "15:05:37 PDT"]
[Termination "Rodalquilar won by resignation"]

1. c4 {[%clk 0:02:59.8]} 1... e6 {[%clk 0:03:00.1]} 2. Nf3 {[%clk 0:02:53.6]}
2... d5 {[%clk 0:03:00.3]} 3. cxd5 {[%clk 0:02:54]} 3... exd5 {[%clk 0:03:00.6]}
4. d4 {[%clk 0:02:54.7]} 4... Nf6 {[%clk 0:02:59.6]} 5. g3 {[%clk 0:02:54.7]}
5... Bf5 {[%clk 0:02:59.4]} 6. Bg2 {[%clk 0:02:55.2]} 6... c6 {[%clk 0:02:59.9]}
7. O-O {[%clk 0:02:55.5]} 7... Nbd7 {[%clk 0:03:00.4]} 8. Nc3 {[%clk 0:02:56.1]}
8... Be7 {[%clk 0:02:55.9]} 9. Bf4 {[%clk 0:02:52.3]} 9... O-O {[%clk
0:02:56.1]} 10. Ne5 {[%clk 0:02:51.3]} 10... h6 {[%clk 0:02:48.4]} 11. Nxd7
{[%clk 0:02:44.7]} 11... Nxd7 {[%clk 0:02:47.1]} 12. f3 {[%clk 0:02:37.3]} 12...
Qb6 {[%clk 0:02:32.1]} 13. e4 {[%clk 0:02:36.5]} 13... Be6 {[%clk 0:02:32.6]}
14. Qd2 {[%clk 0:02:28.6]} 14... Rfd8 {[%clk 0:02:27.7]} 15. Be3 {[%clk
0:02:24.7]} 15... dxe4 {[%clk 0:02:01.4]} 16. fxe4 {[%clk 0:02:21.1]} 16... Ne5
{[%clk 0:02:01.8]} 17. d5 {[%clk 0:01:59.1]} 17... Bc5 {[%clk 0:02:01.8]} 18.
Bxc5 {[%clk 0:01:58.9]} 18... Qxc5+ {[%clk 0:02:02.7]} 19. Kh1 {[%clk
0:01:59.3]} 19... Bg4 {[%clk 0:01:47.7]} 20. Qf4 {[%clk 0:01:54]} 20... Qe7
{[%clk 0:01:42.5]} 21. h3 {[%clk 0:01:36.4]} 21... Bh5 {[%clk 0:01:42.9]} 22. g4
{[%clk 0:01:32.3]} 22... Bg6 {[%clk 0:01:43.2]} 23. Rad1 {[%clk 0:01:32.2]}
23... Rd6 {[%clk 0:01:40.4]} 24. dxc6 {[%clk 0:01:29.9]} 24... bxc6 {[%clk
0:01:36]} 25. Rxd6 {[%clk 0:01:29.6]} 25... Qxd6 {[%clk 0:01:36.9]} 26. Rd1
{[%clk 0:01:29.7]} 26... Qe7 {[%clk 0:01:36.8]} 27. b3 {[%clk 0:01:26.8]} 27...
Re8 {[%clk 0:01:36.5]} 28. Qf2 {[%clk 0:01:16.2]} 28... a5 {[%clk 0:01:31.9]}
29. Qd4 {[%clk 0:01:08.5]} 29... Qh4 {[%clk 0:01:22.7]} 30. Kg1 {[%clk 0:00:25]}
30... h5 {[%clk 0:01:21.7]} 31. gxh5 {[%clk 0:00:23.3]} 31... Bxh5 {[%clk
0:01:22.6]} 32. Rf1 {[%clk 0:00:23.1]} 32... Qg3 {[%clk 0:01:17.6]} 33. Qc5
{[%clk 0:00:05.8]} 33... Nf3+ {[%clk 0:00:57.6]} 34. Rxf3 {[%clk 0:00:05.5]}
34... Bxf3 {[%clk 0:00:57.9]} 35. Qf2 {[%clk 0:00:06.2]} 35... Qxf2+ {[%clk
0:00:57.5]} 36. Kxf2 {[%clk 0:00:07.1]} 36... Bxg2 {[%clk 0:00:58]} 37. Kxg2
{[%clk 0:00:07.6]} 37... Rd8 {[%clk 0:00:58.5]} 38. Kf2 {[%clk 0:00:04.1]} 38...
Rd3 {[%clk 0:00:57.5]} 39. Ne2 {[%clk 0:00:04.7]} 39... Rd2 {[%clk 0:00:52]} 40.
Ke3 {[%clk 0:00:04.3]} 40... Rxa2 {[%clk 0:00:51.9]} 41. h4 {[%clk 0:00:03.8]}
41... Rb2 {[%clk 0:00:49.2]} 42. Nc1 {[%clk 0:00:01.5]} 42... Rh2 {[%clk
0:00:48.8]} 43. Nd3 {[%clk 0:00:01.5]} 43... Rxh4 {[%clk 0:00:48.6]} 44. Kd4
{[%clk 0:00:02.4]} 44... g5 {[%clk 0:00:43.2]} 45. Ne5 {[%clk 0:00:02.7]} 45...
g4 {[%clk 0:00:38.5]} 46. Ke3 {[%clk 0:00:02.3]} 46... Rh3+ {[%clk 0:00:36.6]}
47. Kf4 {[%clk 0:00:02.3]} 47... Rxb3 {[%clk 0:00:36.7]} 48. Nxc6 {[%clk
0:00:02.8]} 48... a4 {[%clk 0:00:37]} 49. Nd4 {[%clk 0:00:03.2]} 49... Rb2
{[%clk 0:00:36.8]} 50. Nf5 {[%clk 0:00:01.5]} 50... a3 {[%clk 0:00:36.8]} 51.
Nh6+ {[%clk 0:00:01.9]} 51... Kf8 {[%clk 0:00:36.9]} 52. Nxg4 {[%clk 0:00:02.8]}
52... a2 {[%clk 0:00:37]} 53. Nf6 {[%clk 0:00:02.5]} 53... a1=Q {[%clk
0:00:36.8]} 54. Nd7+ {[%clk 0:00:03.4]} 54... Ke7 {[%clk 0:00:37]} 55. Ne5
{[%clk 0:00:04.3]} 55... Rf2+ {[%clk 0:00:36.3]} 56. Ke3 {[%clk 0:00:04.5]}
56... Qxe5 {[%clk 0:00:36]} 57. Kxf2 {[%clk 0:00:05.4]} 57... Qxe4 {[%clk
0:00:36.4]} 58. Kg3 {[%clk 0:00:06]} 58... Qf5 {[%clk 0:00:36.6]} 0-1

[Event "Late-Titled-Tuesday-Blitz-June-25-2024"]
[Site "Chess.com"]
[Date "2024.06.25"]
[Round "6"]
[White "jup1978"]
[Black "crazy_but_lazy"]
[Result "1-0"]
[WhiteElo "2505"]
[BlackElo "2621"]
[TimeControl "180+1"]
[EndTime "15:05:41 PDT"]
[Termination "jup1978 won by checkmate"]

1. d4 {[%clk 0:03:00.9]} 1... Nf6 {[%clk 0:02:58.7]} 2. Nf3 {[%clk 0:03:00.2]}
2... c5 {[%clk 0:02:57.3]} 3. d5 {[%clk 0:02:58.7]} 3... b5 {[%clk 0:02:47.1]}
4. a4 {[%clk 0:02:55.3]} 4... b4 {[%clk 0:02:45.5]} 5. c4 {[%clk 0:02:51.5]}
5... bxc3 {[%clk 0:02:40.6]} 6. Nxc3 {[%clk 0:02:50.6]} 6... d6 {[%clk
0:02:40.9]} 7. e4 {[%clk 0:02:49.5]} 7... g6 {[%clk 0:02:41.3]} 8. Bb5+ {[%clk
0:02:48]} 8... Bd7 {[%clk 0:02:34]} 9. O-O {[%clk 0:02:42.5]} 9... Bg7 {[%clk
0:02:33.8]} 10. e5 {[%clk 0:02:42.8]} 10... dxe5 {[%clk 0:02:27.6]} 11. Nxe5
{[%clk 0:02:42.1]} 11... O-O {[%clk 0:02:27.6]} 12. Nxd7 {[%clk 0:02:32.1]}
12... Nbxd7 {[%clk 0:02:23.9]} 13. d6 {[%clk 0:02:32.6]} 13... e6 {[%clk
0:02:02.3]} 14. Bg5 {[%clk 0:02:27.7]} 14... a6 {[%clk 0:02:00.5]} 15. Bc6
{[%clk 0:02:10.6]} 15... Rb8 {[%clk 0:02:00.3]} 16. Ne4 {[%clk 0:02:10.9]} 16...
Qb6 {[%clk 0:01:55.4]} 17. Bxd7 {[%clk 0:02:01]} 17... Nxd7 {[%clk 0:01:55.5]}
18. Be7 {[%clk 0:01:48.5]} 18... Rfc8 {[%clk 0:01:55.1]} 19. Rb1 {[%clk
0:01:48.7]} 19... Qb4 {[%clk 0:01:45.2]} 20. Re1 {[%clk 0:01:22.6]} 20... c4
{[%clk 0:01:45.6]} 21. h3 {[%clk 0:01:18.1]} 21... a5 {[%clk 0:01:42.5]} 22. Qf3
{[%clk 0:01:12]} 22... Qxa4 {[%clk 0:01:41.4]} 23. Ng5 {[%clk 0:01:11]} 23...
Rf8 {[%clk 0:01:33.5]} 24. Bxf8 {[%clk 0:01:07.4]} 24... Rxf8 {[%clk 0:01:34.4]}
25. Qb7 {[%clk 0:01:00.1]} 25... Rb8 {[%clk 0:01:24.6]} 26. Qc7 {[%clk
0:00:54.4]} 26... Qb5 {[%clk 0:01:24.8]} 27. Ne4 {[%clk 0:00:45.1]} 27... h6
{[%clk 0:01:16]} 28. Rec1 {[%clk 0:00:34.6]} 28... Ne5 {[%clk 0:00:59.8]} 29. d7
{[%clk 0:00:27.6]} 29... Nxd7 {[%clk 0:00:56.2]} 30. Nd6 {[%clk 0:00:26.4]}
30... Qb6 {[%clk 0:00:37.6]} 31. Qxd7 {[%clk 0:00:22.9]} 31... Rd8 {[%clk
0:00:35.6]} 32. Qxf7+ {[%clk 0:00:23]} 32... Kh7 {[%clk 0:00:35.9]} 33. Ne8
{[%clk 0:00:20.5]} 33... Rxe8 {[%clk 0:00:20.2]} 34. Qxe8 {[%clk 0:00:21.4]}
34... h5 {[%clk 0:00:21]} 35. Rxc4 {[%clk 0:00:18.1]} 35... Kh6 {[%clk 0:00:19]}
36. Qc6 {[%clk 0:00:16.1]} 36... Qb3 {[%clk 0:00:18.3]} 37. Rc3 {[%clk
0:00:10.6]} 37... Qb4 {[%clk 0:00:17.7]} 38. Rcc1 {[%clk 0:00:10]} 38... a4
{[%clk 0:00:17.8]} 39. Qc2 {[%clk 0:00:10]} 39... Bd4 {[%clk 0:00:15.5]} 40. Rd1
{[%clk 0:00:09.5]} 40... e5 {[%clk 0:00:13.4]} 41. Qd2+ {[%clk 0:00:09.6]} 41...
Qxd2 {[%clk 0:00:14.1]} 42. Rxd2 {[%clk 0:00:10.4]} 42... Kg5 {[%clk 0:00:15]}
43. Rxd4 {[%clk 0:00:09.6]} 43... exd4 {[%clk 0:00:15.2]} 44. Rd1 {[%clk
0:00:10.2]} 44... Kf5 {[%clk 0:00:11.7]} 45. Rxd4 {[%clk 0:00:10.1]} 45... Kg5
{[%clk 0:00:12]} 46. Rxa4 {[%clk 0:00:10]} 46... Kf5 {[%clk 0:00:12.1]} 47. Rc4
{[%clk 0:00:10.5]} 47... Kg5 {[%clk 0:00:12.4]} 48. b4 {[%clk 0:00:11]} 48...
Kf5 {[%clk 0:00:11.7]} 49. b5 {[%clk 0:00:11.9]} 49... g5 {[%clk 0:00:12.4]} 50.
b6 {[%clk 0:00:12.2]} 50... g4 {[%clk 0:00:13.2]} 51. b7 {[%clk 0:00:12.4]}
51... Kg5 {[%clk 0:00:13.9]} 52. b8=Q {[%clk 0:00:12.2]} 52... Kh4 {[%clk
0:00:14.5]} 53. Qg3+ {[%clk 0:00:09.9]} 53... Kg5 {[%clk 0:00:14.7]} 54. h4+
{[%clk 0:00:10.2]} 54... Kf5 {[%clk 0:00:14.3]} 55. Qf4+ {[%clk 0:00:10.1]}
55... Ke6 {[%clk 0:00:15.2]} 56. Re4+ {[%clk 0:00:09]} 56... Kd5 {[%clk
0:00:15.6]} 57. Qf5+ {[%clk 0:00:08.9]} 57... Kd6 {[%clk 0:00:15.9]} 58. Re6+
{[%clk 0:00:09.6]} 58... Kd7 {[%clk 0:00:16.6]} 59. Qf7+ {[%clk 0:00:10.5]}
59... Kd8 {[%clk 0:00:17.3]} 60. Re8# {[%clk 0:00:11.4]} 1-0